fUST/lending_fUST_20250512
["ID","MTS","AMOUNT","RATE_DAILY","PERIOD"]
[360836466,1747061439806,-2715.5,0.0001439,2]
[360836467,1747061439816,-2715.5,0.0001439,2]
[360836468,1747061439826,-500.0,0.0001439,2]
[360836469,1747061439837,-153.0,0.00014543,2]
[360836470,1747061439847,-154.2938119,0.00014543,2]
[360836471,1747061439857,-153.0,0.00014543,2]
[360836472,1747061439867,-153.0,0.00014543,2]
[360836473,1747061439876,-153.0,0.00014543,2]
[360836474,1747061439886,-153.0,0.00014547,2]
[360836475,1747061439895,-153.0,0.00014547,2]
[360836476,1747061439905,-151.0,0.000146,2]
[360836477,1747061439915,-652.53809012,0.00014645,2]
[360836478,1747061439925,-151.0,0.000147,2]
[360836479,1747061439935,-151.0,0.000147,2]
[360836480,1747061439945,-151.0,0.000147,2]
[360836481,1747061439954,-151.0,0.000147,2]
[360836482,1747061439964,-2718.94567357,0.00014749,2]
[360836483,1747061439974,-363.469,0.00014798,2]
[360836484,1747061439984,-323.98272029,0.00014798,2]
[360836485,1747061439993,-7613.10651753,0.00014798,2]
[360836486,1747061440003,-151.0,0.000148,2]
[360836487,1747061440013,-151.0,0.000148,2]
[360836488,1747061440023,-151.0,0.000148,2]
[360836489,1747061440032,-151.0,0.000148,2]
[360836490,1747061440042,-549.572,0.00014805,2]
[360836491,1747061440052,-2238.0,0.00014805,2]
[360836493,1747061440061,-706.0,0.00014805,2]
[360836495,1747061440071,-150.194,0.00014805,2]
[360836497,1747061440084,-150.401,0.00014805,2]
[360836499,1747061440094,-2351.3258786,0.00014823,2]
[360836501,1747061440103,-160.0,0.00014872,2]
[360836502,1747061440112,-500.0,0.00014873,2]
[360836504,1747061440122,-500.0,0.00014873,2]
[360836506,1747061440131,-500.0,0.00014873,2]
[360836508,1747061440140,-490.37070545,0.00014873,2]
[360836509,1747061440150,-502.18083544,0.00014873,2]
[360836510,1747061440159,-340.44994791,0.00014873,2]
[360836511,1747061440168,-500.0,0.00014873,2]
[360836512,1747061440177,-500.0,0.00014873,2]
[360836513,1747061440186,-500.0,0.00014873,2]
[360836514,1747061440195,-500.0,0.00014873,2]
[360836515,1747061440205,-500.0,0.00014873,2]
[360836516,1747061440214,-503.3401353,0.00014873,2]
[360836517,1747061440223,-500.0,0.00014873,2]
[360836518,1747061440232,-342.96457368,0.00014873,2]
[360836521,1747061440242,-500.0,0.00014873,2]
[360836523,1747061440251,-500.0,0.00014873,2]
[360836524,1747061440263,-500.0,0.00014873,2]
[360836525,1747061440272,-500.0,0.00014873,2]
[360836526,1747061440281,-181.22309401,0.00014873,2]
[360836527,1747061440290,-500.0,0.00014873,2]
[360836528,1747061440299,-500.0,0.00014873,2]
[360836529,1747061440308,-500.0,0.00014873,2]
[360836530,1747061440317,-500.0,0.00014873,2]
[360836531,1747061440326,-500.0,0.00014873,2]
[360836532,1747061440338,-500.0,0.00014873,2]
[360836533,1747061440349,-269.89484154,0.00014873,2]
[360836534,1747061440358,-500.0,0.00014873,2]
[360836535,1747061440367,-500.0,0.00014876,2]
[360836536,1747061440376,-500.0,0.00014876,2]
[360836537,1747061440385,-500.0,0.00014876,2]
[360836538,1747061440394,-541.67798468,0.00014876,2]
[360836539,1747061440403,-1272.0834075,0.00014881,2]
[360836540,1747061440412,-543.0,0.00014881,2]
[360836541,1747061440422,-543.0,0.00014881,2]
[360836542,1747061440431,-543.0,0.00014881,2]
[360836543,1747061440440,-543.0,0.00014881,2]
[360836544,1747061440449,-543.0,0.00014881,2]
[360836545,1747061440458,-543.0,0.00014881,2]
[360836546,1747061440467,-543.0,0.00014881,2]
[360836547,1747061440476,-543.0,0.00014881,2]
[360836548,1747061440486,-543.0,0.00014881,2]
[360836549,1747061440495,-543.0,0.00014881,2]
[360836550,1747061440505,-543.0,0.00014881,2]
[360836551,1747061440515,-543.0,0.00014881,2]
[360836552,1747061440525,-543.0,0.00014881,2]
[360836553,1747061440536,-543.0,0.00014881,2]
[360836554,1747061440546,-543.0,0.00014881,2]
[360836555,1747061440556,-543.0,0.00014881,2]
[360836556,1747061440566,-543.0,0.00014881,2]
[360836557,1747061440575,-543.0,0.00014881,2]
[360836558,1747061440586,-543.0,0.00014881,2]
[360836559,1747061440595,-543.0,0.00014881,2]
[360836560,1747061440605,-543.0,0.00014881,2]
[360836561,1747061440614,-543.0,0.00014881,2]
[360836562,1747061440623,-242.29041165,0.00014881,2]
[360836563,1747061440633,-145832.2222432,0.00014898,3]
[360836564,1747061440642,-212.17074216,0.00014898,3]
[360836565,1747061440651,-90044.84683008,0.00014898,2]
[360836566,1747061440666,-224084.61702291,0.00014898,2]
[360836568,1747061440756,-302203.80371857,0.00014898,2]
[360836569,1747061440768,-492004.53844495,0.00014898,2]
[360836570,1747061440780,-31048.9689931,0.00014898,2]
[360836581,1747061441815,-0.00464213,0.00014898,2]
[360836582,1747061441834,-25186.61166012,0.00014898,2]
[360836690,1747061446627,-323694.00000001,0.00014898,2]
[360836878,1747061509356,1652.0,0.00014,30]
[360836880,1747061644116,-151.00172521,0.00013798,2]
[360836881,1747061703583,-9.14735837,0.00013798,2]
[360836882,1747061703609,-235.18235374,0.00013799,2]
[360836883,1747061793463,-292.47034532,0.00013799,2]
[360836884,1747061898802,-277.44769808,0.00013799,2]
[360836885,1747061959733,-165.7235016,0.00012891,2]
[360836886,1747061973469,-250.3591559,0.00012891,2]
[360836887,1747061988501,-173.6803921,0.00012891,2]
[360836888,1747062003640,-277.44769808,0.00012891,2]
[360836889,1747062019064,-207.92972836,0.00012891,2]
[360836892,1747062138545,-274.74112626,0.00012891,2]
[360836896,1747062234694,-270.7625258,0.00012799,2]
[360836902,1747062264540,-192.55890115,0.00012798,2]
[360836905,1747062270879,-107.44109885,0.00012798,2]
[360836906,1747062270902,-177.51632465,0.00012799,2]
[360836909,1747062273493,-190.09158542,0.00012799,2]
[360836916,1747062309437,-178.46055557,0.00012798,2]
[360836917,1747062309464,-136.58202093,0.00012798,2]
[360836923,1747062338923,-163.41797907,0.00012798,2]
[360836924,1747062338948,-136.58202093,0.00012798,2]
[360836925,1747062342910,-275.73146563,0.00012798,2]
[360836927,1747062348439,-389.13623059,0.00012798,2]
[360836928,1747062351805,-244.06422832,0.00012798,2]
[360836933,1747062377647,7015.55030719,0.00013,7]
[360836985,1747062440273,-203.40473326,0.00012698,2]
[360837008,1747062514135,-152.0,0.00012429,2]
[360837009,1747062528424,-77.38901895,0.00012429,2]
[360837023,1747062550918,-164.17475853,0.00012302,2]
[360837024,1747062558475,-299.41072498,0.00012302,2]
[360837084,1747062632789,-181.15897079,0.00012302,2]
[360837086,1747062632799,-4.5249951,0.00012698,2]
[360837088,1747062632808,-300.0,0.00012797,2]
[360837090,1747062632818,-234.71603411,0.00012798,2]
[360837113,1747062632916,-65.28396589,0.00012798,2]
[360837116,1747062632925,-300.0,0.00012798,2]
[360837121,1747062632944,-300.0,0.00012798,2]
[360837126,1747062632962,-1200.0,0.00012798,2]
[360837131,1747062632983,-24261.62956413,0.00012799,2]
[360837136,1747062633005,-456.7463691,0.00012891,2]
[360837139,1747062633026,-1623.77058776,0.00013,7]
[360837142,1747062633046,-27661.26564217,0.00013,7]
[360837145,1747062633066,-160.14908358,0.0001352,2]
[360837148,1747062633082,-349.495,0.0001362,2]
[360837150,1747062633100,-444.76270921,0.0001362,2]
[360837153,1747062633119,-362.9868952,0.00013641,2]
[360837154,1747062633142,-25621.95844056,0.00013698,2]
[360837156,1747062633155,-382.863337,0.00013699,2]
[360837157,1747062633174,-500.0,0.00013699,2]
[360837158,1747062633190,-500.0,0.00013699,2]
[360837159,1747062633206,-500.0,0.00013699,2]
[360837160,1747062633221,-500.0,0.00013699,2]
[360837161,1747062633241,-340.0763865,0.00013699,2]
[360837162,1747062633256,-500.0,0.00013699,2]
[360837163,1747062633270,-362.9868952,0.000137,2]
[360837164,1747062633285,-569.0544613,0.000137,2]
[360837165,1747062633301,-157.9005868,0.000137,2]
[360837166,1747062633316,-157.9005868,0.000137,2]
[360837167,1747062633332,-569.0544613,0.000137,2]
[360837168,1747062633348,-362.9868952,0.000137,2]
[360837169,1747062633364,-569.0544613,0.000137,2]
[360837170,1747062633380,-157.9005868,0.000137,2]
[360837171,1747062633394,-362.9868952,0.000137,2]
[360837172,1747062633411,-153.0,0.00013725,2]
[360837173,1747062633426,-569.0544613,0.00013778,2]
[360837174,1747062633441,-157.9005868,0.00013778,2]
[360837175,1747062633456,-151.0,0.00013792,2]
[360837176,1747062633471,-6890.37587152,0.00013798,2]
[360837177,1747062633489,-151.0,0.000138,2]
[360837178,1747062633505,-151.0,0.000138,2]
[360837179,1747062633521,-151.0,0.000138,2]
[360837180,1747062633537,-151.0,0.000138,2]
[360837181,1747062633553,-151.0,0.000138,2]
[360837182,1747062633569,-151.0,0.000138,2]
[360837183,1747062633585,-157.9005868,0.000138,2]
[360837184,1747062633601,-362.9868952,0.000138,2]
[360837185,1747062633616,-569.0544613,0.000138,2]
[360837186,1747062633632,-500.0,0.00013873,2]
[360837187,1747062633648,-500.0,0.00013873,2]
[360837188,1747062633664,-500.0,0.00013873,2]
[360837189,1747062633680,-408.36227071,0.00013873,2]
[360837190,1747062633695,-500.0,0.00013873,2]
[360837191,1747062633710,-503.40923574,0.00013873,2]
[360837192,1747062633728,-355.4673736,0.00013873,2]
[360837193,1747062633742,-500.0,0.00013873,2]
[360837194,1747062633759,-500.0,0.00013873,2]
[360837195,1747062633775,-500.0,0.00013873,2]
[360837196,1747062633791,-500.0,0.00013873,2]
[360837197,1747062633806,-500.0,0.00013873,2]
[360837198,1747062633821,-500.0,0.00013873,2]
[360837199,1747062633837,-501.77004466,0.00013873,2]
[360837200,1747062633853,-500.0,0.00013873,2]
[360837201,1747062633870,-500.0,0.00013873,2]
[360837202,1747062633885,-500.0,0.00013873,2]
[360837203,1747062633902,-500.39001197,0.00013873,2]
[360837204,1747062633917,-500.0,0.00013873,2]
[360837205,1747062633932,-500.0,0.00013873,2]
[360837206,1747062634087,-500.0,0.00013873,2]
[360837207,1747062634097,-500.0,0.00013873,2]
[360837208,1747062634107,-500.0,0.00013873,2]
[360837209,1747062634117,-501.18776165,0.00013873,2]
[360837210,1747062634126,-500.0,0.00013873,2]
[360837211,1747062634136,-500.6468458,0.00013873,2]
[360837212,1747062634145,-500.0,0.00013873,2]
[360837213,1747062634156,-500.0,0.00013873,2]
[360837214,1747062634166,-500.0,0.00013873,2]
[360837215,1747062634176,-500.3547928,0.00013873,2]
[360837216,1747062634186,-503.61154406,0.00013873,2]
[360837217,1747062634195,-500.0,0.00013873,2]
[360837218,1747062634205,-500.0,0.00013873,2]
[360837219,1747062634214,-500.0,0.00013873,2]
[360837220,1747062634229,-500.0,0.00013873,2]
[360837221,1747062634239,-518.33023863,0.00013873,2]
[360837222,1747062634249,-500.0,0.00013873,2]
[360837223,1747062634259,-500.0,0.00013873,2]
[360837224,1747062634269,-68756.30314125,0.00013898,2]
[360837253,1747062638686,-745.10319183,0.00013898,2]
[360837263,1747062638778,-434.81370448,0.00013898,2]
[360837265,1747062638791,-2179.38833857,0.00013898,2]
[360837298,1747062640952,-1231.59531452,0.00013898,2]
[360837304,1747062641201,-111.73200766,0.00013898,2]
[360837320,1747062645890,-362.9868952,0.000136,2]
[360837321,1747062645901,-157.9005868,0.00013678,2]
[360837322,1747062645912,-569.0544613,0.00013678,2]
[360837323,1747062645922,-131.63737944,0.00013697,2]
[360837356,1747062693535,-212.17074216,0.00013,7]
[360837357,1747062693560,-87.83906721,0.00013696,2]
[360837358,1747062708507,-167.16903248,0.00012798,2]
[360837359,1747062723477,-156.11634054,0.00012798,2]
[360837360,1747063312070,-211.33230852,0.00011882,2]
[360837361,1747063323486,-241.39302396,0.00011882,2]
[360837362,1747063338461,-224.97153537,0.00011882,2]
[360837363,1747063342134,-1992.0,0.00011882,2]
[360837364,1747063353508,-124.29798115,0.00011882,2]
[360837369,1747063509319,-653.4130124,0.00012753,2]
[360837370,1747063509344,-803.15233398,0.00012798,2]
[360837371,1747063509371,-300.0,0.0001284,2]
[360837372,1747063509397,-500.0,0.00012841,2]
[360837373,1747063509423,-500.0,0.00012841,2]
[360837374,1747063509557,-500.0,0.00012841,2]
[360837375,1747063509580,-500.0,0.00012841,2]
[360837376,1747063509606,-500.0,0.00012841,2]
[360837377,1747063509628,-500.0,0.00012841,2]
[360837378,1747063509651,-224.60304986,0.00012841,2]
[360837379,1747063509676,-500.0,0.00012841,2]
[360837380,1747063509697,-197.195843,0.00012841,2]
[360837381,1747063509721,-500.0,0.00012841,2]
[360837382,1747063509745,-322.62718443,0.00012841,2]
[360837383,1747063509769,-500.0,0.00012841,2]
[360837384,1747063509794,-500.0,0.00012841,2]
[360837385,1747063509819,-500.0,0.00012841,2]
[360837386,1747063509842,-599.26293676,0.00012841,2]
[360837387,1747063509864,-24900.0,0.00012842,2]
[360837388,1747063509885,-205.6515197,0.00012898,2]
[360837389,1747063509908,-176.971446,0.00012945,2]
[360837390,1747063509930,-207.61751849,0.00013521,2]
[360837391,1747063509954,-331.4469857,0.0001357,2]
[360837392,1747063509979,-1532.80481114,0.00013597,2]
[360837393,1747063510011,-500.0,0.00013699,2]
[360837394,1747063510044,-500.0,0.00013699,2]
[360837395,1747063510075,-500.0,0.00013699,2]
[360837396,1747063510105,-500.0,0.00013699,2]
[360837397,1747063510138,-500.0,0.00013699,2]
[360837398,1747063510169,-500.0,0.00013699,2]
[360837399,1747063510203,-500.0,0.00013699,2]
[360837400,1747063510235,-500.0,0.00013699,2]
[360837401,1747063510279,-500.0,0.00013699,2]
[360837402,1747063510327,-500.0,0.00013699,2]
[360837403,1747063510377,-469.32539722,0.00013699,2]
[360837404,1747063510422,-500.0,0.00013699,2]
[360837405,1747063510468,-500.0,0.00013699,2]
[360837406,1747063510515,-500.0,0.00013699,2]
[360837407,1747063510559,-500.0,0.00013699,2]
[360837408,1747063510593,-569.0544613,0.000137,2]
[360837409,1747063510628,-153.0,0.000137,2]
[360837410,1747063510663,-362.9868952,0.000137,2]
[360837411,1747063510698,-157.9005868,0.000137,2]
[360837412,1747063510732,-300.0,0.00013797,2]
[360837413,1747063510765,-6201.33828435,0.00013798,2]
[360837414,1747063510800,-362.9868952,0.000138,2]
[360837415,1747063510834,-569.0544613,0.000138,2]
[360837416,1747063510869,-289.0988326,0.000138,2]
[360837417,1747063510902,-153.0,0.000138,2]
[360837418,1747063510937,-157.9005868,0.000138,2]
[360837419,1747063510974,-362.9868952,0.000138,2]
[360837420,1747063511009,-569.0544613,0.000138,2]
[360837421,1747063511045,-500.0,0.00013873,2]
[360837422,1747063511081,-500.0,0.00013873,2]
[360837423,1747063511118,-500.0,0.00013873,2]
[360837424,1747063511155,-500.0,0.00013873,2]
[360837425,1747063511191,-500.0,0.00013873,2]
[360837426,1747063511228,-500.0,0.00013873,2]
[360837427,1747063511265,-500.0,0.00013873,2]
[360837428,1747063511301,-500.0,0.00013873,2]
[360837429,1747063511334,-500.0,0.00013873,2]
[360837430,1747063511504,-500.0,0.00013873,2]
[360837431,1747063511529,-500.0,0.00013873,2]
[360837432,1747063511556,-500.0,0.00013873,2]
[360837433,1747063511590,-500.0,0.00013873,2]
[360837434,1747063511619,-501.11591448,0.00013873,2]
[360837435,1747063511644,-500.0,0.00013873,2]
[360837436,1747063511674,-500.0,0.00013873,2]
[360837437,1747063511701,-500.0,0.00013873,2]
[360837438,1747063511752,-500.0,0.00013873,2]
[360837439,1747063511778,-500.0,0.00013873,2]
[360837440,1747063511806,-500.0,0.00013873,2]
[360837441,1747063511854,-500.0,0.00013894,2]
[360837442,1747063511900,-500.0,0.00013894,2]
[360837443,1747063511929,-558.10011129,0.00013894,2]
[360837444,1747063511954,-500.0,0.00013894,2]
[360837445,1747063511980,-500.0,0.00013894,2]
[360837446,1747063512006,-500.0,0.00013894,2]
[360837447,1747063512032,-500.0,0.00013894,2]
[360837448,1747063512057,-623.81776134,0.00013894,2]
[360837449,1747063512082,-500.0,0.00013894,2]
[360837450,1747063512107,-500.0,0.00013894,2]
[360837451,1747063512132,-500.0,0.00013894,2]
[360837452,1747063512163,-500.0,0.00013894,2]
[360837453,1747063512189,-500.0,0.00013894,2]
[360837454,1747063512214,-500.0,0.00013894,2]
[360837455,1747063512241,-500.0,0.00013894,2]
[360837456,1747063512272,-176.9906169,0.00013894,2]
[360837457,1747063512298,-500.0,0.00013894,2]
[360837458,1747063512324,-500.0,0.00013894,2]
[360837459,1747063512351,-500.0,0.00013894,2]
[360837460,1747063512376,-279.596,0.00013897,2]
[360837461,1747063512402,-160.0,0.00013897,2]
[360837462,1747063512432,-72916.1111216,0.00013898,3]
[360837463,1747063512456,-212.17074216,0.00013898,3]
[360837464,1747063512482,-3439.6633335,0.00013898,2]
[360837533,1747063831880,-312.0,0.000128,4]
[360837534,1747063831890,-440.513691,0.00013699,2]
[360837535,1747063831899,-300.0,0.00013757,2]
[360837536,1747063831910,-300.0,0.00013758,2]
[360837537,1747063831919,-286.0,0.00013758,2]
[360837539,1747063831928,-300.0,0.00013758,2]
[360837541,1747063831937,-300.0,0.00013758,2]
[360837543,1747063831946,-1200.0,0.00013758,2]
[360837545,1747063831955,-16468.41608335,0.00013759,2]
[360837547,1747063831966,-263.07917187,0.00013759,2]
[360837593,1747063837854,-7255.55989621,0.00013759,2]
[360837604,1747063838003,-33137.06276041,0.00013759,2]
[360837612,1747063840039,-45377.4284706,0.00013759,2]
[360837613,1747063840054,-155.07454179,0.00013798,2]
[360837614,1747063840069,-5581.20445596,0.00013798,2]
[360837615,1747063840085,-500.0,0.00013873,2]
[360837616,1747063840099,-500.0,0.00013873,2]
[360837618,1747063840114,-500.0,0.00013873,2]
[360837620,1747063840129,-500.0,0.00013873,2]
[360837623,1747063840144,-500.0,0.00013873,2]
[360837629,1747063840283,-500.0,0.00013873,2]
[360837630,1747063840301,-500.0,0.00013873,2]
[360837631,1747063840311,-500.0,0.00013873,2]
[360837632,1747063840320,-500.0,0.00013873,2]
[360837633,1747063840330,-500.0,0.00013873,2]
[360837634,1747063840339,-500.0,0.00013873,2]
[360837635,1747063840348,-500.0,0.00013873,2]
[360837636,1747063840357,-500.0,0.00013873,2]
[360837637,1747063840367,-600.0,0.00013897,2]
[360837638,1747063840376,-399.91810408,0.00013897,2]
[360837639,1747063840385,-500.0,0.00013897,2]
[360837640,1747063840394,-329.92504414,0.00013897,2]
[360837641,1747063840403,-500.0,0.00013897,2]
[360837642,1747063840414,-240.6700779,0.00013897,2]
[360837643,1747063840423,-500.0,0.00013897,2]
[360837644,1747063840433,-500.0,0.00013897,2]
[360837645,1747063840443,-500.0,0.00013897,2]
[360837646,1747063840452,-500.0,0.00013897,2]
[360837647,1747063840462,-500.0,0.00013897,2]
[360837648,1747063840471,-500.0,0.00013897,2]
[360837649,1747063840480,-436.67243294,0.00013897,2]
[360837650,1747063840489,-500.0,0.00013897,2]
[360837651,1747063840499,-500.0,0.00013897,2]
[360837652,1747063840508,-500.0,0.00013897,2]
[360837653,1747063840517,-282.16802955,0.00013897,2]
[360837654,1747063840527,-37776.93884304,0.00013898,2]
[360837655,1747063840590,-80838.49356755,0.00013898,2]
[360837656,1747063840599,-36458.0555608,0.00013898,3]
[360837657,1747063840609,-176.29,0.00013898,7]
[360837658,1747063840618,-520065.79504727,0.00013898,2]
[360837700,1747063844034,-1032305.4820338,0.00013898,2]
[360837716,1747063844198,-2500.0,0.00013898,2]
[360837752,1747063922912,-153.05508338,0.00013758,2]
[360837753,1747063922934,-334.00216925,0.00013798,2]
[360837754,1747063922956,-460.35013369,0.00013873,2]
[360837755,1747063922977,-500.0,0.00013873,2]
[360837756,1747063923006,-500.0,0.00013873,2]
[360837757,1747063923031,-409.23235196,0.00013873,2]
[360837758,1747063923058,-160.0,0.00013897,2]
[360837759,1747063923083,-300.0,0.00013897,2]
[360837760,1747063923110,-54183.36026172,0.00013898,2]
[360839230,1747064346422,-260.31795641,0.00011912,2]
[360839251,1747064358448,-230.50253992,0.00011912,2]
[360839256,1747064374729,-155.0,0.00011912,2]
[360839257,1747064379701,-24254.0,0.00011912,2]
[360839258,1747064388673,-0.17950367,0.00011912,2]
[360839259,1747064388698,-223.677,0.00012544,2]
[360839260,1747064388720,-9.39384295,0.00012544,2]
[360839261,1747064403449,-247.67034325,0.00012699,2]
[360839262,1747064418679,-353.43694452,0.00012699,2]
[360839263,1747064433523,-421.53556054,0.00012699,2]
[360839264,1747064449183,-200.30416869,0.00012699,2]
[360839265,1747064463561,-158.96548832,0.00012699,2]
[360839266,1747064478481,-374.30124194,0.00012699,2]
[360839267,1747064493489,-200.30416869,0.00012572,2]
[360839268,1747064508481,-151.70063652,0.00012572,2]
[360839269,1747064523533,-126.23335667,0.00012572,2]
[360839270,1747064523559,-83.1176979,0.00012699,2]
[360839271,1747064538491,-160.7475224,0.0001232,2]
[360839272,1747064538515,-11.58444236,0.00012444,2]
[360839273,1747064553544,-154.33752524,0.0001232,2]
[360839274,1747064568810,-17.99443952,0.0001232,2]
[360839275,1747064568834,-188.71972633,0.00012444,2]
[360839276,1747064568858,-72.70433099,0.00012699,2]
[360839277,1747064583564,-222.68523567,0.00012572,2]
[360839279,1747064598475,-200.30416869,0.0001222,2]
[360839280,1747064598501,-75.8480496,0.00012572,2]
[360839281,1747064613548,-135.22273681,0.00012572,2]
[360839282,1747064613574,-24.16143073,0.00012599,2]
[360839283,1747064628482,-291.22275164,0.00012473,2]
[360839284,1747064644152,-207.61470232,0.00012473,2]
[360839285,1747064644177,-264.92719947,0.00012599,2]
[360839288,1747064829141,-337.11648367,0.00012473,2]
[360839289,1747064829165,-4072.97575861,0.00012599,2]
[360839290,1747064829189,-502.19266101,0.00012699,2]
[360839291,1747064829210,-501.04231145,0.00012707,2]
[360839292,1747064829233,-1200.0,0.0001277,2]
[360839293,1747064829255,-300.0,0.0001277,2]
[360839294,1747064829278,-300.0,0.0001277,2]
[360839295,1747064829300,-154.13821608,0.00012771,2]
[360839296,1747064829324,-236.61647323,0.00012771,2]
[360839297,1747064829347,-500.0,0.00012771,2]
[360839298,1747064829371,-500.0,0.00012771,2]
[360839299,1747064829394,-500.0,0.00012771,2]
[360839300,1747064829418,-500.0,0.00012771,2]
[360839301,1747064829442,-500.0,0.00012771,2]
[360839302,1747064829470,-500.0,0.00012771,2]
[360839303,1747064829496,-500.0,0.00012771,2]
[360839304,1747064829516,-500.0,0.00012771,2]
[360839305,1747064829538,-500.0,0.00012771,2]
[360839306,1747064829558,-320.19847138,0.00012771,2]
[360839307,1747064829580,-500.0,0.00012771,2]
[360839308,1747064829601,-500.0,0.00012771,2]
[360839309,1747064829622,-500.0,0.00012771,2]
[360839310,1747064829643,-500.0,0.00012771,2]
[360839311,1747064829664,-500.0,0.00012771,2]
[360839312,1747064829689,-500.0,0.00012771,2]
[360839313,1747064829713,-500.0,0.00012771,2]
[360839314,1747064829735,-500.0,0.00012771,2]
[360839315,1747064829757,-500.0,0.00012771,2]
[360839316,1747064829779,-479.14664463,0.00012771,2]
[360839317,1747064829801,-500.0,0.00012771,2]
[360839318,1747064829823,-500.0,0.00012771,2]
[360839319,1747064829844,-500.0,0.00012771,2]
[360839320,1747064829865,-259.12332927,0.00012771,2]
[360839321,1747064829886,-500.0,0.00012771,2]
[360839322,1747064829907,-500.0,0.00012771,2]
[360839323,1747064829927,-50000.0,0.00012772,2]
[360839324,1747064829949,-500.0,0.00012773,2]
[360839325,1747064829969,-431.10522004,0.00012773,2]
[360839326,1747064829988,-467.90340474,0.00012773,2]
[360839327,1747064830009,-500.0,0.00012773,2]
[360839328,1747064830029,-500.0,0.00012773,2]
[360839329,1747064830050,-500.0,0.00012773,2]
[360839330,1747064830071,-500.0,0.00012773,2]
[360839331,1747064830092,-500.0,0.00012773,2]
[360839332,1747064830111,-500.0,0.00012773,2]
[360839333,1747064830131,-500.0,0.00012773,2]
[360839334,1747064830150,-255.05713531,0.00012773,2]
[360839335,1747064830169,-216.79839013,0.00012773,2]
[360839336,1747064830191,-500.0,0.00012773,2]
[360839337,1747064830384,-500.0,0.00012773,2]
[360839338,1747064830406,-500.0,0.00012773,2]
[360839339,1747064830429,-500.0,0.00012773,2]
[360839340,1747064830453,-500.0,0.00012773,2]
[360839341,1747064830473,-500.0,0.00012773,2]
[360839342,1747064830493,-500.0,0.00012773,2]
[360839343,1747064830513,-500.0,0.00012773,2]
[360839344,1747064830534,-500.0,0.00012773,2]
[360839345,1747064830554,-500.0,0.00012778,2]
[360839346,1747064830580,-34245.22441739,0.00012779,2]
[360839347,1747064830602,-151.0,0.00012792,2]
[360839348,1747064830625,-3540.684698,0.00012799,2]
[360839349,1747064830646,-18221.81,0.00012799,2]
[360839350,1747064830669,-57812.46,0.000128,2]
[360839351,1747064830694,-6710.51448206,0.000128,2]
[360839352,1747064830932,-127184.021955,0.000128,2]
[360839353,1747064832103,-500.0,0.00012773,2]
[360839354,1747064832124,-500.0,0.00012773,2]
[360839355,1747064832146,-500.0,0.00012773,2]
[360839356,1747064832168,-308590.72356294,0.000128,2]
[360839357,1747064832190,-152.0,0.00012806,2]
[360839358,1747064832210,-159.97712664,0.000129,2]
[360839359,1747064832231,-362.9868952,0.000131,2]
[360839360,1747064832251,-157.9005868,0.000131,2]
[360839361,1747064832272,-569.0544613,0.000131,2]
[360839362,1747064832292,-157.9005868,0.000131,2]
[360839363,1747064832312,-569.0544613,0.000131,2]
[360839364,1747064832332,-362.9868952,0.000131,2]
[360839365,1747064832356,-362.9868952,0.000131,2]
[360839366,1747064832378,-569.0544613,0.000131,2]
[360839367,1747064832401,-501.04231144,0.0001323,2]
[360839368,1747064832422,-362.9868952,0.000133,2]
[360839369,1747064832444,-157.9005868,0.000133,2]